fUST/lending_fUST_20260507
["ID","MTS","AMOUNT","RATE_DAILY","PERIOD"]
[421784781,1778153440000,-500.0,0.00010958,2]
[421784773,1778153440000,-500.0,0.00010958,2]
[421784774,1778153440000,-501.36088453,0.00010958,2]
[421784759,1778153440000,-500.0,0.00010958,2]
[421784777,1778153440000,-500.0,0.00010958,2]
[421784789,1778153440000,-500.0,0.00010958,2]
[421784792,1778153440000,-500.0,0.00010958,2]
[421784788,1778153440000,-508.16891348,0.00010958,2]
[421784786,1778153440000,-500.48609876,0.00010958,2]
[421784785,1778153440000,-500.0,0.00010958,2]
[421784787,1778153440000,-151.0,0.00010958,2]
[421784784,1778153440000,-501.80628721,0.00010958,2]
[421784782,1778153440000,-500.0,0.00010958,2]
[421784775,1778153440000,-500.0,0.00010958,2]
[421784778,1778153440000,-500.0,0.00010958,2]
[421784776,1778153440000,-500.0,0.00010958,2]
[421784783,1778153440000,-501.10821047,0.00010958,2]
[421784864,1778153441000,-14391.720189,0.00010958,2]
[421784863,1778153441000,-501.07379524,0.00010958,2]
[421784862,1778153441000,-500.0,0.00010958,2]
[421784861,1778153441000,-503.21748447,0.00010958,2]
[421784860,1778153441000,-804.84,0.00010958,2]
[421784858,1778153441000,-586.27010948,0.00010958,2]
[421784856,1778153441000,-501.38857488,0.00010958,2]
[421784855,1778153441000,-500.0,0.00010958,2]
[421784854,1778153441000,-501.54547359,0.00010958,2]
[421784851,1778153441000,-502.42388917,0.00010958,2]
[421784865,1778153441000,-500.0,0.00010958,2]
[421784852,1778153441000,-491.223788,0.00010958,2]
[421784859,1778153441000,-500.0,0.00010958,2]
[421784866,1778153441000,-500.0,0.00010958,2]
[421784872,1778153441000,-504.22410738,0.00010958,2]
[421784867,1778153441000,-501.8666107,0.00010958,2]
[421784871,1778153441000,-500.0,0.00010958,2]
[421784868,1778153441000,-500.44969568,0.00010958,2]
[421784870,1778153441000,-500.0,0.00010958,2]
[421784857,1778153441000,-500.0,0.00010958,2]
[421784873,1778153441000,-500.0,0.00010958,2]
[421784874,1778153441000,-502.39973365,0.00010958,2]
[421784876,1778153441000,-156.822555,0.00010958,2]
[421784875,1778153441000,-500.0,0.00010958,2]
[421784877,1778153441000,-500.0,0.00010958,2]
[421784878,1778153441000,-500.0,0.00010958,2]
[421784882,1778153441000,-501.29255612,0.00010958,2]
[421784883,1778153441000,-500.0,0.00010958,2]
[421784869,1778153441000,-167.434598,0.00010958,2]
[421784853,1778153441000,-500.0,0.00010958,2]
[421784824,1778153441000,-500.0,0.00010958,2]
[421784849,1778153441000,-500.0,0.00010958,2]
[421784820,1778153441000,-502.31823213,0.00010958,2]
[421784822,1778153441000,-501.39105444,0.00010958,2]
[421784821,1778153441000,-501.16144871,0.00010958,2]
[421784880,1778153441000,-500.0,0.00010958,2]
[421784823,1778153441000,-500.0,0.00010958,2]
[421784825,1778153441000,-500.0,0.00010958,2]
[421784826,1778153441000,-500.0,0.00010958,2]
[421784828,1778153441000,-500.0,0.00010958,2]
[421784831,1778153441000,-502.36739326,0.00010958,2]
[421784832,1778153441000,-500.0,0.00010958,2]
[421784829,1778153441000,-551.87358597,0.00010958,2]
[421784827,1778153441000,-500.0,0.00010958,2]
[421784830,1778153441000,-168.344209,0.00010958,2]
[421784833,1778153441000,-8399.762522,0.00010958,2]
[421784834,1778153441000,-501.80559029,0.00010958,2]
[421784835,1778153441000,-181.86419974,0.00010958,2]
[421784836,1778153441000,-500.41902908,0.00010958,2]
[421784842,1778153441000,-204.095419,0.00010958,2]
[421784838,1778153441000,-500.0,0.00010958,2]
[421784837,1778153441000,-500.55422806,0.00010958,2]
[421784839,1778153441000,-500.0,0.00010958,2]
[421784841,1778153441000,-500.0,0.00010958,2]
[421784844,1778153441000,-500.0,0.00010958,2]
[421784843,1778153441000,-501.83375039,0.00010958,2]
[421784840,1778153441000,-500.0,0.00010958,2]
[421784847,1778153441000,-500.0,0.00010958,2]
[421784845,1778153441000,-500.0,0.00010958,2]
[421784846,1778153441000,-500.0,0.00010958,2]
[421784848,1778153441000,-500.0,0.00010958,2]
[421784850,1778153441000,-500.0,0.00010958,2]
[421784879,1778153441000,-456.15758249,0.00010958,2]
[421784881,1778153441000,-500.0,0.00010958,2]
[421784886,1778153441000,-633.33054104,0.00010958,2]
[421784915,1778153441000,-500.0,0.00010958,2]
[421784920,1778153441000,-500.43248885,0.00010958,2]
[421784918,1778153441000,-500.2724603,0.00010958,2]
[421784916,1778153441000,-500.0,0.00010958,2]
[421784917,1778153441000,-500.0,0.00010958,2]
[421784919,1778153441000,-500.0,0.00010958,2]
[421784926,1778153441000,-501.8300902,0.00010958,2]
[421784925,1778153441000,-500.0,0.00010958,2]
[421784927,1778153441000,-500.0,0.00010958,2]
[421784933,1778153441000,-572.18244899,0.00010958,2]
[421784930,1778153441000,-500.0,0.00010958,2]
[421784928,1778153441000,-501.98473523,0.00010958,2]
[421784929,1778153441000,-500.0,0.00010958,2]
[421784935,1778153441000,-500.0,0.00010958,2]
[421784934,1778153441000,-500.95918158,0.00010958,2]
[421784931,1778153441000,-511.14912931,0.00010958,2]
[421784936,1778153441000,-500.0,0.00010958,2]
[421784937,1778153441000,-500.0,0.00010958,2]
[421784932,1778153441000,-502.2145434,0.00010958,2]
[421784939,1778153441000,-500.0,0.00010958,2]
[421784938,1778153441000,-500.0,0.00010958,2]
[421784940,1778153441000,-500.0,0.00010958,2]
[421784941,1778153441000,-500.0,0.00010958,2]
[421784942,1778153441000,-500.0,0.00010958,2]
[421784944,1778153441000,-500.0,0.00010958,2]
[421784943,1778153441000,-500.0,0.00010958,2]
[421784945,1778153441000,-933.68,0.00010958,2]
[421784946,1778153441000,-501.78370108,0.00010958,2]
[421784884,1778153441000,-200.81186811,0.00010958,2]
[421784923,1778153441000,-501.55263653,0.00010958,2]
[421784924,1778153441000,-500.0,0.00010958,2]
[421784947,1778153441000,-500.0,0.00010958,2]
[421784921,1778153441000,-580.06951162,0.00010958,2]
[421784887,1778153441000,-500.0,0.00010958,2]
[421784885,1778153441000,-500.0,0.00010958,2]
[421784889,1778153441000,-500.0,0.00010958,2]
[421784888,1778153441000,-500.0,0.00010958,2]
[421784896,1778153441000,-500.0,0.00010958,2]
[421784897,1778153441000,-500.0,0.00010958,2]
[421784891,1778153441000,-506.25290153,0.00010958,2]
[421784898,1778153441000,-501.33723243,0.00010958,2]
[421784922,1778153441000,-530.49778293,0.00010958,2]
[421784895,1778153441000,-500.0,0.00010958,2]
[421784893,1778153441000,-502.397472,0.00010958,2]
[421784894,1778153441000,-251.55095577,0.00010958,2]
[421784892,1778153441000,-500.48419373,0.00010958,2]
[421784900,1778153441000,-500.86106664,0.00010958,2]
[421784890,1778153441000,-505.75630607,0.00010958,2]
[421784902,1778153441000,-503.24600114,0.00010958,2]
[421784899,1778153441000,-500.66947625,0.00010958,2]
[421784912,1778153441000,-502.12862504,0.00010958,2]
[421784913,1778153441000,-500.0,0.00010958,2]
[421784909,1778153441000,-500.0,0.00010958,2]
[421784907,1778153441000,-505.17345446,0.00010958,2]
[421784910,1778153441000,-500.0,0.00010958,2]
[421784914,1778153441000,-491.9871607,0.00010958,2]
[421784906,1778153441000,-532.31843005,0.00010958,2]
[421784908,1778153441000,-500.0,0.00010958,2]
[421784905,1778153441000,-500.0,0.00010958,2]
[421784903,1778153441000,-501.05410323,0.00010958,2]
[421784911,1778153441000,-500.0,0.00010958,2]
[421784901,1778153441000,-500.0,0.00010958,2]
[421784904,1778153441000,-500.0,0.00010958,2]
[421784991,1778153442000,-500.0,0.00010958,2]
[421784992,1778153442000,-500.0,0.00010958,2]
[421784990,1778153442000,-500.0,0.00010958,2]
[421784984,1778153442000,-500.0,0.00010958,2]
[421784989,1778153442000,-500.0,0.00010958,2]
[421784985,1778153442000,-705.13,0.00010958,2]
[421784979,1778153442000,-500.0,0.00010958,2]
[421784988,1778153442000,-500.69945798,0.00010958,2]
[421784983,1778153442000,-501.96494198,0.00010958,2]
[421784982,1778153442000,-500.0,0.00010958,2]
[421784981,1778153442000,-500.0,0.00010958,2]
[421784987,1778153442000,-500.0,0.00010958,2]
[421784993,1778153442000,-500.0,0.00010958,2]
[421785006,1778153442000,-501.50321309,0.00010958,2]
[421784995,1778153442000,-500.0,0.00010958,2]
[421784998,1778153442000,-500.0,0.00010958,2]
[421784996,1778153442000,-500.0,0.00010958,2]
[421784999,1778153442000,-500.6756712,0.00010958,2]
[421784997,1778153442000,-500.0,0.00010958,2]
[421785000,1778153442000,-500.0,0.00010958,2]
[421785001,1778153442000,-500.0,0.00010958,2]
[421785002,1778153442000,-501.01430601,0.00010958,2]
[421785008,1778153442000,-500.0,0.00010958,2]
[421785005,1778153442000,-500.0,0.00010958,2]
[421785003,1778153442000,-500.43905639,0.00010958,2]
[421785013,1778153442000,-500.0,0.00010958,2]
[421785004,1778153442000,-500.0,0.00010958,2]
[421784980,1778153442000,-500.82000883,0.00010958,2]
[421784994,1778153442000,-500.0,0.00010958,2]
[421784978,1778153442000,-500.0,0.00010958,2]
[421784961,1778153442000,-501.59302516,0.00010958,2]
[421784972,1778153442000,-512.84367668,0.00010958,2]
[421785007,1778153442000,-500.0,0.00010958,2]
[421784950,1778153442000,-500.0,0.00010958,2]
[421784949,1778153442000,-502.98277283,0.00010958,2]
[421784948,1778153442000,-500.0,0.00010958,2]
[421784951,1778153442000,-500.0,0.00010958,2]
[421784952,1778153442000,-501.2220326,0.00010958,2]
[421784954,1778153442000,-500.0,0.00010958,2]
[421784962,1778153442000,-500.0,0.00010958,2]
[421784963,1778153442000,-402.76594847,0.00010958,2]
[421784953,1778153442000,-500.0,0.00010958,2]
[421784956,1778153442000,-500.0,0.00010958,2]
[421784955,1778153442000,-500.0,0.00010958,2]
[421784960,1778153442000,-501.66037854,0.00010958,2]
[421784977,1778153442000,-500.98547929,0.00010958,2]
[421784959,1778153442000,-500.0,0.00010958,2]
[421784958,1778153442000,-500.0,0.00010958,2]
[421784964,1778153442000,-630.61,0.00010958,2]
[421784976,1778153442000,-500.40258965,0.00010958,2]
[421784966,1778153442000,-500.0,0.00010958,2]
[421784965,1778153442000,-496.38396376,0.00010958,2]
[421784967,1778153442000,-503.30258677,0.00010958,2]
[421784969,1778153442000,-501.52470777,0.00010958,2]
[421784968,1778153442000,-500.0,0.00010958,2]
[421784970,1778153442000,-500.0,0.00010958,2]
[421784975,1778153442000,-500.0,0.00010958,2]
[421784971,1778153442000,-504.06563496,0.00010958,2]
[421784973,1778153442000,-500.3785406,0.00010958,2]
[421784974,1778153442000,-500.0,0.00010958,2]
[421784957,1778153442000,-501.02969475,0.00010958,2]
[421785011,1778153442000,-500.0,0.00010958,2]
[421784986,1778153442000,-500.79604634,0.00010958,2]
[421785009,1778153442000,-500.0,0.00010958,2]
[421785044,1778153442000,-500.39750683,0.00010958,2]
[421785046,1778153442000,-500.0,0.00010958,2]
[421785049,1778153442000,-500.0,0.00010958,2]
[421785047,1778153442000,-501.94794716,0.00010958,2]
[421785050,1778153442000,-500.0,0.00010958,2]
[421785048,1778153442000,-500.0,0.00010958,2]
[421785051,1778153442000,-500.0,0.00010958,2]
[421785052,1778153442000,-501.3928627,0.00010958,2]
[421785054,1778153442000,-500.0,0.00010958,2]
[421785064,1778153442000,-502.04841819,0.00010958,2]
[421785053,1778153442000,-500.0,0.00010958,2]
[421785056,1778153442000,-500.0,0.00010958,2]
[421785061,1778153442000,-502.55675062,0.00010958,2]
[421785057,1778153442000,-500.0,0.00010958,2]
[421785059,1778153442000,-503.30300213,0.00010958,2]
[421785063,1778153442000,-537.68751401,0.00010958,2]
[421785055,1778153442000,-500.85299948,0.00010958,2]
[421785060,1778153442000,-500.0,0.00010958,2]
[421785058,1778153442000,-501.4505078,0.00010958,2]
[421785062,1778153442000,-500.0,0.00010958,2]
[421785065,1778153442000,-500.0,0.00010958,2]
[421785070,1778153442000,-500.77548735,0.00010958,2]
[421785071,1778153442000,-503.02816541,0.00010958,2]
[421785075,1778153442000,-500.0,0.00010958,2]
[421785067,1778153442000,-500.0,0.00010958,2]
[421785073,1778153442000,-500.0,0.00010958,2]
[421785077,1778153442000,-500.0,0.00010958,2]
[421785081,1778153442000,-502.31162342,0.00010958,2]
[421785012,1778153442000,-500.87389232,0.00010958,2]
[421785045,1778153442000,-400.83119684,0.00010958,2]
[421785042,1778153442000,-500.0,0.00010958,2]
[421785079,1778153442000,-500.0,0.00010958,2]
[421785041,1778153442000,-501.54282307,0.00010958,2]
[421785043,1778153442000,-500.0,0.00010958,2]
[421785010,1778153442000,-502.75884926,0.00010958,2]
[421785015,1778153442000,-501.79769862,0.00010958,2]
[421785014,1778153442000,-502.22724969,0.00010958,2]
[421785024,1778153442000,-501.47170372,0.00010958,2]
[421785023,1778153442000,-500.0,0.00010958,2]
[421785025,1778153442000,-500.0,0.00010958,2]
[421785016,1778153442000,-500.0,0.00010958,2]
[421785017,1778153442000,-500.0,0.00010958,2]
[421785018,1778153442000,-500.62963038,0.00010958,2]
[421785019,1778153442000,-500.36565427,0.00010958,2]
[421785021,1778153442000,-501.33602269,0.00010958,2]
[421785022,1778153442000,-500.0,0.00010958,2]
[421785020,1778153442000,-500.0,0.00010958,2]
[421785026,1778153442000,-501.6739281,0.00010958,2]
[421785028,1778153442000,-500.0,0.00010958,2]
[421785027,1778153442000,-500.0,0.00010958,2]
[421785039,1778153442000,-500.0,0.00010958,2]
[421785080,1778153442000,-500.0,0.00010958,2]
[421785040,1778153442000,-603.96294246,0.00010958,2]
[421785038,1778153442000,-502.92618369,0.00010958,2]
[421785032,1778153442000,-501.4908382,0.00010958,2]
[421785037,1778153442000,-501.5683423,0.00010958,2]
[421785036,1778153442000,-500.0,0.00010958,2]
[421785035,1778153442000,-501.41861128,0.00010958,2]
[421785034,1778153442000,-504.85379478,0.00010958,2]
[421785031,1778153442000,-503.3237275,0.00010958,2]
[421785029,1778153442000,-500.66123941,0.00010958,2]
[421785033,1778153442000,-561.57,0.00010958,2]
[421785030,1778153442000,-500.0,0.00010958,2]
[421785122,1778153443000,-500.0,0.00010958,2]
[421785120,1778153443000,-500.0,0.00010958,2]
[421785116,1778153443000,-504.17131601,0.00010958,2]
[421785119,1778153443000,-633.72491643,0.00010958,2]
[421785115,1778153443000,-206.24703394,0.00010958,2]
[421785111,1778153443000,-500.0,0.00010958,2]
[421785114,1778153443000,-500.0,0.00010958,2]
[421785113,1778153443000,-500.0,0.00010958,2]
[421785121,1778153443000,-500.0,0.00010958,2]
[421785117,1778153443000,-500.0,0.00010958,2]
[421785118,1778153443000,-500.0,0.00010958,2]
[421785131,1778153443000,-500.0,0.00010958,2]
[421785125,1778153443000,-500.0,0.00010958,2]
[421785124,1778153443000,-407.88428519,0.00010958,2]
[421785128,1778153443000,-500.0,0.00010958,2]
[421785132,1778153443000,-500.0,0.00010958,2]
[421785126,1778153443000,-1102.59,0.00010958,2]
[421785129,1778153443000,-501.58284962,0.00010958,2]
[421785134,1778153443000,-1437.04,0.00010958,2]
[421785130,1778153443000,-500.0,0.00010958,2]
[421785112,1778153443000,-500.0,0.00010958,2]
[421785127,1778153443000,-504.10716238,0.00010958,2]
[421785123,1778153443000,-500.0,0.00010958,2]
[421785110,1778153443000,-500.0,0.00010958,2]
[421785091,1778153443000,-500.0,0.00010958,2]
[421785108,1778153443000,-688.82,0.00010958,2]
[421785133,1778153443000,-500.0,0.00010958,2]
[421785083,1778153443000,-500.0,0.00010958,2]
[421785085,1778153443000,-500.0,0.00010958,2]
[421785082,1778153443000,-500.0,0.00010958,2]
[421785084,1778153443000,-500.0,0.00010958,2]
[421785086,1778153443000,-507.33455705,0.00010958,2]
[421785087,1778153443000,-500.0,0.00010958,2]
[421785088,1778153443000,-500.0,0.00010958,2]
[421785089,1778153443000,-196.2384252,0.00010958,2]
[421785090,1778153443000,-500.0,0.00010958,2]
[421785095,1778153443000,-500.0,0.00010958,2]
[421785092,1778153443000,-500.0,0.00010958,2]
[421785093,1778153443000,-691.32,0.00010958,2]
[421785096,1778153443000,-500.0,0.00010958,2]
[421785097,1778153443000,-500.0,0.00010958,2]
[421785098,1778153443000,-500.0,0.00010958,2]
[421785100,1778153443000,-500.0,0.00010958,2]
[421785101,1778153443000,-504.03241565,0.00010958,2]
[421785099,1778153443000,-500.0,0.00010958,2]
[421785102,1778153443000,-500.0,0.00010958,2]
[421785104,1778153443000,-500.0,0.00010958,2]
[421785103,1778153443000,-501.37745441,0.00010958,2]
[421785107,1778153443000,-500.0,0.00010958,2]
[421785109,1778153443000,-500.0,0.00010958,2]
[421785135,1778153443000,-500.0,0.00010958,2]
[421785094,1778153443000,-500.0,0.00010958,2]
[421785136,1778153443000,-500.0,0.00010958,2]
[421785158,1778153443000,-1433.04,0.00010958,2]
[421785164,1778153443000,-500.0,0.00010958,2]
[421785163,1778153443000,-500.0,0.00010958,2]
[421785170,1778153443000,-500.0,0.00010958,2]
[421785180,1778153443000,-500.5351831,0.00010958,2]
[421785175,1778153443000,-500.0,0.00010958,2]
[421785176,1778153443000,-500.0,0.00010958,2]
[421785169,1778153443000,-500.0,0.00010958,2]
[421785174,1778153443000,-502.11206447,0.00010958,2]
[421785185,1778153443000,-500.0,0.00010958,2]
[421785171,1778153443000,-501.08356926,0.00010958,2]
[421785178,1778153443000,-500.0,0.00010958,2]
[421785172,1778153443000,-3435.07,0.00010958,2]
[421785179,1778153443000,-500.0,0.00010958,2]
[421785173,1778153443000,-500.0,0.00010958,2]
[421785177,1778153443000,-500.0,0.00010958,2]
[421785182,1778153443000,-500.0,0.00010958,2]
[421785187,1778153443000,-500.0,0.00010958,2]
[421785189,1778153443000,-503.76392274,0.00010958,2]
[421785184,1778153443000,-500.0,0.00010958,2]
[421785183,1778153443000,-500.0,0.00010958,2]
[421785188,1778153443000,-725.65,0.00010958,2]
[421785142,1778153443000,-500.0,0.00010958,2]
[421785160,1778153443000,-505.07432175,0.00010958,2]
[421785161,1778153443000,-503.11010651,0.00010958,2]
[421785181,1778153443000,-500.0,0.00010958,2]
[421785162,1778153443000,-500.0,0.00010958,2]
[421785159,1778153443000,-6499.89,0.00010958,2]
[421785144,1778153443000,-500.0,0.00010958,2]
[421785138,1778153443000,-502.78610381,0.00010958,2]
[421785137,1778153443000,-500.0,0.00010958,2]
[421785145,1778153443000,-442.45291883,0.00010958,2]
[421785143,1778153443000,-500.0,0.00010958,2]
[421785139,1778153443000,-500.0,0.00010958,2]
[421785141,1778153443000,-1053.66,0.00010958,2]
[421785147,1778153443000,-501.01175983,0.00010958,2]
[421785146,1778153443000,-500.0,0.00010958,2]
[421785148,1778153443000,-500.0,0.00010958,2]
[421785149,1778153443000,-500.0,0.00010958,2]
[421785140,1778153443000,-500.32955966,0.00010958,2]
[421785153,1778153443000,-500.0,0.00010958,2]
[421785150,1778153443000,-500.0,0.00010958,2]
[421785167,1778153443000,-500.0,0.00010958,2]
[421785165,1778153443000,-500.0,0.00010958,2]
[421785166,1778153443000,-500.0,0.00010958,2]
[421785156,1778153443000,-789.33,0.00010958,2]
[421785152,1778153443000,-501.45649761,0.00010958,2]
[421785155,1778153443000,-505.35557562,0.00010958,2]
[421785154,1778153443000,-8774.04,0.00010958,2]
[421785151,1778153443000,-501.80638282,0.00010958,2]
[421785157,1778153443000,-500.0,0.00010958,2]
[421785168,1778153443000,-501.32838473,0.00010958,2]
[421785220,1778153444000,-500.35967146,0.00010958,2]
[421785216,1778153444000,-1835.42,0.00010958,2]
[421785221,1778153444000,-500.0,0.00010958,2]
[421785211,1778153444000,-500.0,0.00010958,2]
[421785218,1778153444000,-646.34,0.00010958,2]
[421785212,1778153444000,-523.02939779,0.00010958,2]
[421785217,1778153444000,-500.0,0.00010958,2]
[421785214,1778153444000,-500.0,0.00010958,2]
[421785223,1778153444000,-500.0,0.00010958,2]
[421785213,1778153444000,-503.00813723,0.00010958,2]
[421785224,1778153444000,-500.0,0.00010958,2]
[421785222,1778153444000,-570.97212085,0.00010958,2]
[421785225,1778153444000,-1663.58,0.00010958,2]
[421785226,1778153444000,-500.55374671,0.00010958,2]
[421785227,1778153444000,-500.0,0.00010958,2]
[421785228,1778153444000,-500.0,0.00010958,2]
[421785209,1778153444000,-500.0,0.00010958,2]
[421785215,1778153444000,-490.59969691,0.00010958,2]
[421785219,1778153444000,-500.48589961,0.00010958,2]
[421785199,1778153444000,-1196.29,0.00010958,2]
[421785204,1778153444000,-500.0,0.00010958,2]
[421785230,1778153444000,-500.0,0.00010958,2]
[421785192,1778153444000,-501.50837509,0.00010958,2]
[421785193,1778153444000,-500.0,0.00010958,2]
[421785194,1778153444000,-500.35312086,0.00010958,2]
[421785190,1778153444000,-562.47,0.00010958,2]
[421785191,1778153444000,-502.16367144,0.00010958,2]
[421785195,1778153444000,-500.0,0.00010958,2]
[421785198,1778153444000,-500.0,0.00010958,2]
[421785210,1778153444000,-500.0,0.00010958,2]
[421785197,1778153444000,-500.0,0.00010958,2]
[421785207,1778153444000,-500.0,0.00010958,2]
[421785200,1778153444000,-951.06,0.00010958,2]
[421785201,1778153444000,-500.0,0.00010958,2]
[421785196,1778153444000,-500.0,0.00010958,2]
[421785203,1778153444000,-500.0,0.00010958,2]
[421785208,1778153444000,-627.65,0.00010958,2]
[421785202,1778153444000,-517.71103019,0.00010958,2]
[421785205,1778153444000,-500.0,0.00010958,2]
[421785206,1778153444000,-500.0,0.00010958,2]
[421785233,1778153444000,-500.0,0.00010958,2]
[421785229,1778153444000,-500.0,0.00010958,2]
[421785235,1778153444000,-508.92025014,0.00010958,2]
[421785254,1778153444000,-500.0,0.00011232,2]
[421785258,1778153444000,-500.0,0.00011232,2]
[421785257,1778153444000,-500.0,0.00011232,2]
[421785259,1778153444000,-500.0,0.00011232,2]
[421785262,1778153444000,-500.0,0.00011232,2]
[421785263,1778153444000,-861.1819,0.00011232,2]
[421785260,1778153444000,-500.0,0.00011232,2]
[421785261,1778153444000,-500.0,0.00011232,2]
[421785252,1778153444000,-500.0,0.00011232,2]
[421785265,1778153444000,-500.0,0.00011232,2]
[421785264,1778153444000,-500.0,0.00011232,2]
[421785269,1778153444000,-500.0,0.00011232,2]
[421785267,1778153444000,-500.0,0.00011232,2]
[421785270,1778153444000,-500.0,0.00011232,2]
[421785272,1778153444000,-500.0,0.00011232,2]
[421785273,1778153444000,-500.0,0.00011232,2]
[421785271,1778153444000,-500.0,0.00011232,2]
[421785232,1778153444000,-500.0,0.00010958,2]
[421785266,1778153444000,-500.0,0.00011232,2]
[421785253,1778153444000,-500.0,0.00011232,2]
[421785268,1778153444000,-614.0,0.00011232,2]
[421785256,1778153444000,-500.0,0.00011232,2]
[421785231,1778153444000,-500.0,0.00010958,2]
[421785249,1778153444000,-500.0,0.00011232,2]
[421785234,1778153444000,-500.0,0.00010958,2]
[421785236,1778153444000,-15000.0,0.00010959,2]
[421785239,1778153444000,-261.31674835,0.00011,2]
[421785240,1778153444000,-500.0,0.00011,2]
[421785241,1778153444000,-864.0,0.00011107,2]
[421785237,1778153444000,-151.0,0.00010959,2]
[421785242,1778153444000,-335.94,0.00011232,2]
[421785238,1778153444000,-151.0,0.00011,2]
[421785246,1778153444000,-500.0,0.00011232,2]
[421785245,1778153444000,-500.0,0.00011232,2]
[421785243,1778153444000,-283.36,0.00011232,2]
[421785247,1778153444000,-500.0,0.00011232,2]
[421785248,1778153444000,-500.0,0.00011232,2]
[421785250,1778153444000,-500.0,0.00011232,2]
[421785251,1778153444000,-500.0,0.00011232,2]
[421785244,1778153444000,-500.0,0.00011232,2]
[421785255,1778153444000,-500.0,0.00011232,2]
[421785312,1778153445000,-500.0,0.00011232,2]
[421785311,1778153445000,-500.0,0.00011232,2]
[421785307,1778153445000,-500.0,0.00011232,2]
[421785310,1778153445000,-500.0,0.00011232,2]
[421785306,1778153445000,-500.0,0.00011232,2]
[421785309,1778153445000,-546.36,0.00011232,2]
[421785302,1778153445000,-500.0,0.00011232,2]
[421785305,1778153445000,-500.0,0.00011232,2]
[421785315,1778153445000,-500.0,0.00011232,2]
[421785303,1778153445000,-500.0,0.00011232,2]
[421785308,1778153445000,-500.0,0.00011232,2]
[421785313,1778153445000,-554.6,0.00011232,2]
[421785323,1778153445000,-500.0,0.00011232,2]
[421785321,1778153445000,-500.0,0.00011232,2]
[421785314,1778153445000,-500.0,0.00011232,2]
[421785320,1778153445000,-500.0,0.00011232,2]
[421785316,1778153445000,-804.84,0.00011232,2]
[421785317,1778153445000,-500.0,0.00011232,2]
[421785322,1778153445000,-500.0,0.00011232,2]
[421785318,1778153445000,-500.0,0.00011232,2]
[421785324,1778153445000,-500.0,0.00011232,2]
[421785327,1778153445000,-500.0,0.00011232,2]
[421785326,1778153445000,-500.0,0.00011232,2]
[421785334,1778153445000,-500.0,0.00011232,2]
[421785304,1778153445000,-500.0,0.00011232,2]
[421785319,1778153445000,-500.0,0.00011232,2]
[421785301,1778153445000,-500.0,0.00011232,2]
[421785281,1778153445000,-627.66,0.00011232,2]
[421785300,1778153445000,-500.0,0.00011232,2]
[421785330,1778153445000,-500.0,0.00011232,2]
[421785274,1778153445000,-500.0,0.00011232,2]
[421785277,1778153445000,-500.0,0.00011232,2]
[421785275,1778153445000,-624.54,0.00011232,2]
[421785278,1778153445000,-561.5,0.00011232,2]
[421785276,1778153445000,-500.0,0.00011232,2]
[421785279,1778153445000,-500.0,0.00011232,2]
[421785280,1778153445000,-500.0,0.00011232,2]
[421785282,1778153445000,-542.54,0.00011232,2]
[421785287,1778153445000,-500.0,0.00011232,2]